fUST/lending_fUST_20260610
["ID","MTS","AMOUNT","RATE_DAILY","PERIOD"]
[424640388,1781025452000,160.0,0.00022211,120]
[424640389,1781025453000,161.21743537,0.00023211,120]
[424640390,1781025556000,152.0,0.00020211,120]
[424640391,1781025557000,152.0,0.00021211,120]
[424640392,1781025559000,152.0,0.00022211,120]
[424640393,1781025560000,152.0,0.00023211,120]
[424640398,1781025614000,156.0,0.00020211,120]
[424640399,1781025615000,156.0,0.00021211,120]
[424640400,1781025616000,156.0,0.00022211,120]
[424640401,1781025618000,156.0,0.00023211,120]
[424640406,1781025732000,1918.55419966,0.00020204,120]
[424640410,1781025851000,483.06,8.4e-05,2]
[424640409,1781025851000,483.06,8.4e-05,2]
[424640408,1781025851000,483.06,8.4e-05,2]
[424640411,1781025852000,483.08,8.4e-05,2]
[424640418,1781026070000,193.22,8.4e-05,2]
[424640480,1781026232000,-893.90684644,0.00013473,2]
[424640830,1781026241000,-25102.18887621,0.0001521,2]
[424640828,1781026241000,-553.98504812,0.0001521,2]
[424640824,1781026241000,-290.51449444,0.00014827,2]
[424640822,1781026241000,-3406.33242589,0.00013609,2]
[424640817,1781026241000,-1593.66757411,0.00013609,2]
[424640815,1781026241000,-509.29242589,0.00013473,2]
[424640813,1781026241000,-1288.72719031,0.00013473,2]
[424640811,1781026241000,-2308.07353736,0.00013473,2]
[424641136,1781026243000,-1949.09956,0.0001521,2]
[424641507,1781026246000,-4602.33260778,0.0001521,2]
[424641504,1781026246000,-47998.82560013,0.0001521,2]
[424643577,1781026386000,158.0,0.00020204,120]
[424643578,1781026387000,158.0,0.00021204,120]
[424643579,1781026389000,159.07088796,0.00022204,120]
[424643580,1781026486000,153.0,0.00020204,120]
[424643581,1781026487000,153.0,0.00021204,120]
[424643582,1781026489000,153.0,0.00022204,120]
[424643583,1781026490000,153.0,0.00023204,120]
[424643591,1781026538000,152.0,0.00020204,120]
[424643592,1781026540000,152.0,0.00021204,120]
[424643593,1781026541000,152.0,0.00022204,120]
[424643594,1781026542000,152.0,0.00023204,120]
[424643595,1781026599000,161.0,0.00020204,120]
[424643596,1781026600000,161.0,0.00021204,120]
[424643597,1781026602000,161.0,0.00022204,120]
[424643598,1781026603000,161.0,0.00023204,120]
[424643600,1781026669000,156.0,0.00020204,120]
[424643601,1781026671000,156.0,0.00021204,120]
[424643602,1781026672000,156.0,0.00022204,120]
[424643603,1781026673000,156.0,0.00023204,120]
[424643605,1781026717000,154.0,0.00020201,120]
[424643606,1781026719000,154.0,0.00021201,120]
[424643607,1781026720000,154.0,0.00022201,120]
[424643608,1781026721000,154.0,0.00023201,120]
[424643618,1781026869000,152.0,0.00020201,120]
[424643619,1781026870000,152.0,0.00021201,120]
[424643620,1781026872000,152.0,0.00022201,120]
[424643621,1781026873000,152.0,0.00023201,120]
[424643622,1781026918000,157.0,0.00020201,120]
[424643623,1781026920000,157.0,0.00021201,120]
[424643624,1781026921000,157.0,0.00022201,120]
[424643625,1781026922000,160.9058333,0.00023201,120]
[424643655,1781027352000,-483.60482556,0.00014175,2]
[424643656,1781027352000,-615.908,0.00014175,2]
[424643654,1781027352000,-200.91,0.00012329,2]
[424643714,1781027438000,-352.95450638,0.00014665,2]
[424643713,1781027438000,-225.89088409,0.00014665,2]
[424643712,1781027438000,-197.65452358,0.00014665,2]
[424643709,1781027438000,-3802.04062699,0.00012205,2]
[424643710,1781027438000,-167.42,0.00012329,2]
[424643716,1781027438000,-1042.54118361,0.00015005,2]
[424643717,1781027438000,-1042.54118361,0.00015005,2]
[424643715,1781027438000,-507.7462347,0.00014665,2]
[424643711,1781027438000,-837.15,0.00012329,2]
[424643702,1781027438000,-1197.95937301,0.00012205,2]
[424643718,1781027438000,-283.13699448,0.00015005,2]
[424643725,1781027438000,-1042.54118361,0.00015005,2]
[424643735,1781027438000,-1042.54118361,0.00015005,2]
[424643734,1781027438000,-1042.54118361,0.00015005,2]
[424643732,1781027438000,-1042.54118361,0.00015005,2]
[424643719,1781027438000,-1042.54118361,0.00015005,2]
[424643730,1781027438000,-1042.54118361,0.00015005,2]
[424643720,1781027438000,-1042.54118361,0.00015005,2]
[424643723,1781027438000,-1042.54118361,0.00015005,2]
[424643726,1781027438000,-1042.54118361,0.00015005,2]
[424643721,1781027438000,-1042.54118361,0.00015005,2]
[424643728,1781027438000,-1042.54118361,0.00015005,2]
[424643733,1781027438000,-1042.54118361,0.00015005,2]
[424643756,1781027439000,-500.0,0.00015005,2]
[424643760,1781027439000,-434.98055529,0.00015005,2]
[424643748,1781027439000,-1042.54118361,0.00015005,2]
[424643754,1781027439000,-500.0,0.00015005,2]
[424643752,1781027439000,-500.0,0.00015005,2]
[424643758,1781027439000,-500.0,0.00015005,2]
[424643745,1781027439000,-1042.54118361,0.00015005,2]
[424643743,1781027439000,-1042.54118361,0.00015005,2]
[424643739,1781027439000,-1042.54118361,0.00015005,2]
[424643764,1781027439000,-500.0,0.00015005,2]
[424643749,1781027439000,-500.0,0.00015005,2]
[424643738,1781027439000,-1042.54118361,0.00015005,2]
[424643762,1781027439000,-500.0,0.00015005,2]
[424643768,1781027439000,-648.76602149,0.00015005,2]
[424643766,1781027439000,-500.0,0.00015005,2]
[424643789,1781027439000,-5702.28168253,0.00015007,2]
[424643778,1781027439000,-500.0,0.00015005,2]
[424643780,1781027439000,-500.0,0.00015005,2]
[424643776,1781027439000,-500.0,0.00015005,2]
[424643786,1781027439000,-41527.26774274,0.00015007,2]
[424643774,1781027439000,-500.0,0.00015005,2]
[424643782,1781027439000,-1042.54118361,0.00015005,2]
[424643770,1781027439000,-500.0,0.00015005,2]
[424643772,1781027439000,-500.0,0.00015005,2]
[424643784,1781027439000,-500.0,0.00015006,2]
[424644704,1781027446000,-6853.70799434,0.00015007,2]
[424644702,1781027446000,-5000.0,0.00014857,2]
[424645444,1781027840000,152.08636372,0.00020202,120]
[424645445,1781027894000,151.0,0.00020201,120]
[424645446,1781027896000,151.0,0.00021201,120]
[424645447,1781027897000,151.0,0.00022201,120]
[424645448,1781027898000,151.0,0.00023201,120]
[424645457,1781027979000,-5000.0,0.000127,2]
[424645469,1781027987000,-500.0,0.00012957,2]
[424645470,1781027987000,-500.0,0.00012957,2]
[424645468,1781027987000,-5000.0,0.00012828,2]
[424645473,1781027987000,-1401.80593591,0.00012958,2]
[424645471,1781027987000,-238.75178017,0.00012957,2]
[424645472,1781027987000,-159.44228392,0.00012957,2]
[424645478,1781028038000,318.24,0.00015,120]
[424645483,1781028260000,150.0,0.00015,120]
[424645532,1781028632000,-909.838,0.00011602,2]
[424645533,1781028632000,-1990.81803,0.00011602,2]
[424645530,1781028632000,-4190.73607181,0.00011486,2]
[424645531,1781028632000,-1209.12919516,0.00011602,2]
[424645566,1781028638000,-5000.0,0.00011719,2]
[424645568,1781028638000,-343.76026201,0.000127,2]
[424645564,1781028638000,-890.21477484,0.00011602,2]
[424645570,1781028638000,-1349.35077559,0.0001349,7]
[424645573,1781028638000,-177.3875632,0.0001376,7]
[424645572,1781028638000,-1349.35077559,0.0001376,7]
[424645575,1781028638000,-234.4726976,0.00014093,2]
[424645577,1781028638000,-1349.35077559,0.00014165,7]
[424645579,1781028638000,-297.159229,0.00014285,2]
[424645581,1781028638000,-6293.0823399,0.00014553,2]
[424645589,1781028639000,-500.0,0.00014569,2]
[424645585,1781028639000,-814.41731579,0.00014566,2]
[424645583,1781028639000,-1007.3273577,0.00014553,2]
[424645587,1781028639000,-433.663,0.00014569,2]
[424645591,1781028639000,-1349.35077559,0.00014569,7]
[424645597,1781028639000,-151.0,0.00014798,2]
[424645593,1781028639000,-266.08134484,0.00014569,7]
[424645599,1781028639000,-151.0,0.00014798,2]
[424645600,1781028639000,-189.78448419,0.00014798,2]
[424645603,1781028639000,-4232.95210064,0.00014807,2]
[424645605,1781028639000,-4707.18389801,0.00014807,2]
[424645595,1781028639000,-151.0,0.00014798,2]
[424646224,1781028643000,-198.19589614,0.00014566,2]
[424646226,1781028644000,-367.25410386,0.00014807,2]
[424646228,1781028644000,-443.0,0.00014807,2]
[424646234,1781028644000,-1329.07474658,0.00014807,2]
[424646238,1781028644000,-35488.92479919,0.00014807,2]
[424646241,1781028644000,-317.989,0.00014807,2]
[424646236,1781028644000,-1188.7191524,0.00014807,2]
[424646596,1781028647000,-2575.66618234,0.00014807,2]
[424649166,1781029210000,152.0,0.00020201,120]
[424649167,1781029211000,152.0,0.00021201,120]
[424649168,1781029213000,152.0,0.00022201,120]
[424649169,1781029214000,152.0,0.00023201,120]
[424649245,1781029831000,-364.7469473,0.00011939,2]
[424649246,1781029831000,-304.0,0.00011939,2]
[424649244,1781029831000,-265.8830527,0.0001182,2]
[424649383,1781029838000,-89792.57330471,0.00014607,2]
[424649337,1781029838000,-4331.2530527,0.00011939,2]
[424649340,1781029838000,-500.0,0.00012936,2]
[424649344,1781029838000,-473.62822048,0.00012936,2]
[424649339,1781029838000,-5000.0,0.0001206,2]
[424649342,1781029838000,-612.39455094,0.00012936,2]
[424649348,1781029838000,-500.0,0.00012936,2]
[424649350,1781029838000,-573.45819783,0.00012936,2]
[424649351,1781029838000,-500.0,0.00012936,2]
[424649353,1781029838000,-500.0,0.00012936,2]
[424649361,1781029838000,-316.0044008,0.00014062,2]
[424649355,1781029838000,-500.0,0.00012936,2]
[424649346,1781029838000,-500.0,0.00012936,2]
[424649359,1781029838000,-370.08273035,0.00012939,7]
[424649370,1781029838000,-326.5044788,0.00014538,2]
[424649363,1781029838000,-1200.7364027,0.00014125,2]
[424649372,1781029838000,-500.0,0.00014552,2]
[424649366,1781029838000,-457.0194852,0.00014513,2]
[424649368,1781029838000,-457.3719674,0.00014533,2]
[424649365,1781029838000,-3074.2257033,0.00014125,2]
[424649373,1781029838000,-500.0,0.00014558,2]
[424649375,1781029838000,-500.0,0.00014567,2]
[424649381,1781029838000,-152.0,0.00014584,7]
[424649379,1781029838000,-152.0,0.00014569,7]
[424649377,1781029838000,-152.0,0.00014569,7]
[424649357,1781029838000,-3012.55299643,0.00012936,2]
[424649568,1781029840000,-416.13135057,0.00014607,2]
[424649580,1781029843000,-2274.99999997,0.00014607,2]
[424649589,1781029846000,-1487.50743795,0.00014461,2]
[424649590,1781029846000,-3512.49256205,0.00014461,2]
[424649588,1781029846000,-10299.12786092,0.00014607,2]
[424649591,1781029846000,-86661.77587298,0.00014607,2]
[424649593,1781029892000,-1468.9262557,0.00012083,2]
[424649602,1781030527000,152.0,0.00020192,120]
[424649603,1781030528000,152.0,0.00021192,120]
[424649604,1781030530000,152.0,0.00022192,120]
[424649605,1781030531000,152.0,0.00023192,120]
[424649614,1781030954000,-483.60482556,0.00010928,2]
[424649660,1781031032000,-1564.66238701,0.00012555,7]
[424649658,1781031032000,-285.93979976,0.00012554,2]
[424649656,1781031032000,-934.63,0.00010819,2]
[424649655,1781031032000,-5000.0,0.00010711,2]
[424649662,1781031032000,-1479.51781323,0.00012555,7]
[424649695,1781031038000,-1063.47231561,0.00013182,2]
[424649704,1781031038000,-1063.47231561,0.00013182,2]
[424649712,1781031038000,-1102.24474379,0.00013182,2]
[424649705,1781031038000,-1063.47231561,0.00013182,2]
[424649706,1781031038000,-1063.47231561,0.00013182,2]
[424649699,1781031038000,-1063.47231561,0.00013182,2]
[424649702,1781031038000,-1063.47231561,0.00013182,2]
[424649696,1781031038000,-1063.47231561,0.00013182,2]
[424649698,1781031038000,-1063.47231561,0.00013182,2]
[424649697,1781031038000,-1063.47231561,0.00013182,2]
[424649701,1781031038000,-1063.47231561,0.00013182,2]
[424649694,1781031038000,-1063.47231561,0.00013182,2]
[424649692,1781031038000,-1063.47231561,0.00013182,2]
[424649703,1781031038000,-1063.47231561,0.00013182,2]
[424649693,1781031038000,-1063.47231561,0.00013182,2]
[424649689,1781031038000,-417.15472785,0.00012806,7]
[424649691,1781031038000,-1063.47231561,0.00013182,2]
[424649690,1781031038000,-484.73691714,0.00013082,2]
[424649688,1781031038000,-5516.48799544,0.00012806,7]
[424649687,1781031038000,-1564.66238701,0.00012806,7]
[424649686,1781031038000,-383.161,0.00012806,2]
[424649685,1781031038000,-4036.97018221,0.00012555,7]
[424649713,1781031038000,-1102.24474379,0.00013182,2]
[424649707,1781031038000,-1102.24474379,0.00013182,2]
[424649700,1781031038000,-1063.47231561,0.00013182,2]
[424649710,1781031038000,-1102.24474379,0.00013182,2]
[424649735,1781031038000,-225.11670713,0.00014556,2]
[424649730,1781031038000,-500.0,0.00014458,2]
[424649731,1781031038000,-500.0,0.00014458,2]
[424649711,1781031038000,-1102.24474379,0.00013182,2]
[424649733,1781031038000,-151.71,0.00014497,2]
[424649734,1781031038000,-187.05,0.00014507,2]
[424649729,1781031038000,-383.30227037,0.00014255,2]
[424649728,1781031038000,-266.44858078,0.00014255,2]
[424649720,1781031038000,-299.5105255,0.00013542,2]
[424649723,1781031038000,-1564.66238704,0.00014062,7]
[424649722,1781031038000,-5516.48799544,0.00013559,7]
[424649718,1781031038000,-388.445919,0.00013542,2]
[424649732,1781031038000,-1717.490591,0.00014475,2]
[424649721,1781031038000,-1564.66238701,0.00013559,7]
[424649724,1781031038000,-5516.48799545,0.00014062,7]
[424649715,1781031038000,-1102.24474379,0.00013182,2]
[424649719,1781031038000,-166.56129769,0.00013542,2]
[424649709,1781031038000,-1102.24474379,0.00013182,2]
[424649726,1781031038000,-500.0,0.00014124,2]
[424649727,1781031038000,-319.73829694,0.00014255,2]
[424649716,1781031038000,-1564.66238701,0.00013183,7]
[424649725,1781031038000,-388.445919,0.00014112,2]
[424649714,1781031038000,-1102.24474379,0.00013182,2]
[424649708,1781031038000,-1102.24474379,0.00013182,2]
[424649717,1781031038000,-5516.48799544,0.00013183,7]
[424649737,1781031039000,-321.97362574,0.00014557,2]
[424649736,1781031039000,-274.88329287,0.00014556,2]
[424649913,1781031044000,-132.30317444,0.00014557,2]
[424649916,1781031044000,-152.0,0.00014573,7]
[424649914,1781031044000,-45.72319982,0.00014557,2]
[424649915,1781031044000,-152.0,0.00014569,7]
[424649917,1781031044000,-52.35639958,0.00014597,2]
[424649923,1781031046000,-1801.77212347,0.00014411,2]
[424649940,1781031901000,152.0,0.00020192,120]
[424649941,1781031903000,152.0,0.00021192,120]
[424649942,1781031904000,152.0,0.00022192,120]
[424649943,1781031905000,152.0,0.00023192,120]
[424649980,1781032232000,-689.77538779,0.00011474,7]
[424649983,1781032232000,-312.9324774,0.00011474,7]
[424649986,1781032232000,-295.90356264,0.00011802,7]
[424649988,1781032232000,-6083.89480251,0.00012226,2]
[424649990,1781032232000,-269.87015513,0.00012239,7]
[424649982,1781032232000,-295.90356264,0.00011474,7]
[424649977,1781032232000,-269.87015512,0.00011147,7]
[424649985,1781032232000,-269.87015512,0.00011802,7]
[424649976,1781032232000,-689.77538779,0.00011147,7]
[424649972,1781032232000,-689.77538779,0.00010928,7]
[424649975,1781032232000,-312.9324774,0.00010928,7]
[424649974,1781032232000,-295.90356264,0.00010928,7]
[424649973,1781032232000,-269.87015512,0.00010928,7]
[424649970,1781032232000,-934.63,0.00010711,2]
[424649969,1781032232000,-5000.0,0.00010604,2]
[424649978,1781032232000,-295.90356264,0.00011147,7]
[424649987,1781032232000,-312.9324774,0.00011802,7]
[424650004,1781032232000,-830.73547944,0.00012325,2]
[424649979,1781032232000,-312.9324774,0.00011147,7]
[424650002,1781032232000,-905.59016385,0.00012325,2]
[424650003,1781032232000,-905.59016385,0.00012325,2]
[424650001,1781032232000,-905.59016385,0.00012325,2]
[424649999,1781032232000,-905.59016385,0.00012325,2]
[424649996,1781032232000,-623.59274726,0.00012325,2]
[424650000,1781032232000,-905.59016385,0.00012325,2]
[424649994,1781032232000,-905.59016385,0.00012325,2]
[424649981,1781032232000,-269.87015512,0.00011474,7]
[424649998,1781032232000,-820.26370131,0.00012325,2]
[424649997,1781032232000,-85.32646254,0.00012325,2]
[424649993,1781032232000,-905.59016385,0.00012325,2]
[424649992,1781032232000,-312.93247741,0.00012239,7]
[424649991,1781032232000,-295.90356267,0.00012239,7]
[424649989,1781032232000,-689.77538783,0.00012239,7]
[424649984,1781032232000,-689.77538779,0.00011802,7]
[424649995,1781032232000,-281.99741659,0.00012325,2]
[424650010,1781032238000,-905.59016385,0.00012325,2]
[424650011,1781032238000,-601.67162508,0.00012325,2]
[424650009,1781032238000,-74.85468441,0.00012325,2]
[424650142,1781032241000,-258.963946,0.00013104,2]
[424650140,1781032241000,-476.02,0.00012329,2]
[424650138,1781032241000,-571.22,0.00012329,2]
[424650136,1781032241000,-685.47,0.00012329,2]
[424650117,1781032241000,-669.47131214,0.00012325,2]
[424650111,1781032241000,-236.11885171,0.00012325,2]
[424650121,1781032241000,-905.59016385,0.00012325,2]
[424650109,1781032241000,-303.91853877,0.00012325,2]
[424650146,1781032241000,-500.0,0.00013698,2]
[424650119,1781032241000,-905.59016385,0.00012325,2]
[424650123,1781032241000,-905.59016385,0.00012325,2]
[424650134,1781032241000,-822.56,0.00012329,2]
[424650132,1781032241000,-987.07,0.00012329,2]
[424650130,1781032241000,-1184.48,0.00012329,2]
[424650163,1781032241000,-38678.47018479,0.00014302,2]
[424650154,1781032241000,-221.67708716,0.00013699,2]
[424650156,1781032241000,-258.963946,0.00014208,2]
[424650148,1781032241000,-500.0,0.00013698,2]
[424650158,1781032241000,-151.0,0.00014293,2]
[424650144,1781032241000,-258.963946,0.00013656,2]
[424650150,1781032241000,-500.0,0.00013698,2]
[424650152,1781032241000,-500.0,0.00013698,2]
[424650125,1781032241000,-1705.66,0.00012329,2]
[424650127,1781032241000,-1421.38,0.00012329,2]
[424650160,1781032241000,-4150.27596835,0.00014302,2]
[424650351,1781032244000,-6594.87904515,0.00014302,2]
[424650361,1781032246000,-8037.24941359,0.00014302,2]
[424650370,1781032752000,-483.60482556,0.00010711,7]
[424650388,1781033268000,152.89137087,0.00020187,120]
[424650411,1781033432000,-325.839,0.00010711,7]
[424650418,1781033432000,-751.60910998,0.00010711,7]
[424650422,1781033432000,-154.0,0.00010928,7]
[424650420,1781033432000,-1561.05293554,0.00010925,7]
[424650424,1781033432000,-1561.05293554,0.00011247,7]
[424650430,1781033432000,-2210.9087047,0.00011716,2]
[424650428,1781033432000,-2789.0912953,0.00011716,2]
[424650434,1781033432000,-376.6412953,0.00011834,2]
[424650426,1781033432000,-1561.05293554,0.00011568,7]
[424650432,1781033432000,-500.0,0.00011834,2]
[424650515,1781033438000,-500.0,0.00011834,2]
[424650497,1781033438000,-123.3587047,0.00011834,2]
[424650499,1781033438000,-500.0,0.00011834,2]
[424650501,1781033438000,-47.38082971,0.00011834,2]
[424650510,1781033438000,-500.0,0.00011834,2]
[424650508,1781033438000,-500.0,0.00011834,2]
[424650506,1781033438000,-452.61917029,0.00011834,2]
[424650519,1781033438000,-500.0,0.00011834,2]
[424650513,1781033438000,-561.59285986,0.00011834,2]
[424650517,1781033438000,-500.0,0.00011834,2]
[424650520,1781033438000,-500.0,0.00011834,2]
[424650530,1781033438000,-404.89769415,0.00011834,2]
[424650533,1781033438000,-294.69058029,0.00011996,7]
[424650526,1781033438000,-154.68796985,0.00011834,2]
[424650522,1781033438000,-500.0,0.00011834,2]
[424650524,1781033438000,-500.0,0.00011834,2]
[424650511,1781033438000,-500.0,0.00011834,2]
[424650796,1781033441000,-311.991456,0.00011996,7]
[424650788,1781033441000,-304.0,0.00011996,7]
[424651296,1781033492000,-650.37089928,0.00011996,7]
[424651297,1781033519000,1524.0,0.00020187,34]
[424651416,1781034632000,-4097.54688809,0.00011491,2]
[424651808,1781034639000,-500.0,0.00012606,2]
[424651800,1781034639000,-165.34,0.00012329,2]
[424651806,1781034639000,-500.0,0.00012606,2]
[424651804,1781034639000,-260.1483597,0.00012449,7]
[424651802,1781034639000,-826.72,0.00012329,2]
[424651799,1781034639000,-249.0767,0.00012204,2]
[424651785,1781034639000,-229.15,0.00011971,2]
[424651791,1781034639000,-156.0,0.00011996,2]
[424651789,1781034639000,-166.0,0.00011996,2]
[424651795,1781034639000,-156.0,0.00011996,2]
[424651787,1781034639000,-166.0,0.00011996,2]
[424651817,1781034639000,-500.0,0.00012606,2]
[424651783,1781034639000,-902.45311191,0.00011491,2]
[424651793,1781034639000,-156.12757092,0.00011996,2]
[424651819,1781034639000,-304.6992037,0.00012606,2]
[424651797,1781034639000,-152.0,0.0001208,7]
[424651813,1781034639000,-500.0,0.00012606,2]
[424651844,1781034639000,-152.0,0.00013812,7]
[424651846,1781034639000,-17141.02249601,0.00013871,2]
[424651840,1781034639000,-152.0,0.00013812,7]
[424651834,1781034639000,-158.818062,0.00013526,2]
[424651836,1781034639000,-500.0,0.00013698,2]
[424651838,1781034639000,-500.0,0.00013698,2]
[424651833,1781034639000,-390.22253958,0.00013181,7]
[424651831,1781034639000,-237.56546986,0.00012865,2]
[424651825,1781034639000,-264.22662445,0.00012865,2]
[424651827,1781034639000,-412.85410071,0.00012865,2]
[424651823,1781034639000,-231.1982964,0.00012865,2]
[424651821,1781034639000,-200.74440897,0.00012607,2]
[424651815,1781034639000,-500.0,0.00012606,2]
[424651810,1781034639000,-500.0,0.00012606,2]
[424651829,1781034639000,-593.91539512,0.00012865,2]
[424651812,1781034639000,-228.78940742,0.00012606,2]
[424652936,1781034648000,-10291.80626791,0.00013871,2]
[424652945,1781034648000,-0.00638423,0.00013871,2]
[424658521,1781035049000,5443.65069482,0.0002,120]
[424658647,1781035832000,-922.2283537,0.00013141,2]
[424658645,1781035832000,-204.80583038,0.00013083,2]
[424658641,1781035832000,-4663.12819504,0.00012883,2]
[424658643,1781035832000,-367.72410627,0.00013013,2]
[424658644,1781035832000,-5323.40795217,0.00013036,2]
[424658642,1781035832000,-336.87180496,0.00012883,2]
[424658640,1781035832000,-152.0,0.00012194,7]
[424658646,1781035832000,-722.11522323,0.00013141,2]
[424658737,1781035840000,-151.0,0.000138,2]
[424658726,1781035840000,-301.1113443,0.00013141,2]
[424658724,1781035840000,-25640.83067807,0.00013141,2]
[424658732,1781035840000,-226.37254578,0.00013698,2]
[424658728,1781035840000,-235.4880464,0.00013141,2]
[424658734,1781035840000,-158.818062,0.00013768,2]
[424658686,1781035840000,-17863.8,0.00013141,2]
[424658739,1781035840000,-151.0,0.00013861,2]
[424658730,1781035840000,-500.0,0.00013698,2]
[424658735,1781035840000,-185.2,0.00013771,2]
[424658753,1781035840000,-500.0,0.0001397,2]
[424658743,1781035840000,-500.0,0.0001387,2]
[424658744,1781035840000,-156.10317444,0.0001387,2]
[424658746,1781035840000,-151.0,0.00013871,2]
[424658755,1781035840000,-500.0,0.0001397,2]
[424658749,1781035840000,-500.0,0.00013969,2]
[424658757,1781035840000,-152.0,0.00014015,2]
[424658751,1781035840000,-500.0,0.0001397,2]
[424658748,1781035840000,-151.0,0.000139,2]
[424658741,1781035840000,-500.0,0.0001387,2]
[424658843,1781035841000,-326.5044788,0.00016082,2]
[424658835,1781035841000,-156.229,0.00015552,2]
[424658837,1781035841000,-158.818062,0.00015942,2]
[424658833,1781035841000,-166.1089,0.00015551,2]
[424658831,1781035841000,-619.65382721,0.00015529,2]
[424658820,1781035841000,-600.0,0.00015409,2]
[424658824,1781035841000,-151.0,0.00015505,2]
[424658826,1781035841000,-160.92721312,0.00015529,2]
[424658822,1781035841000,-398.18021488,0.000155,2]
[424658845,1781035841000,-326.5044788,0.00016082,2]
[424658827,1781035841000,-321.85442624,0.00015529,2]
[424658829,1781035841000,-684.76595553,0.00015529,2]
[424658839,1781035841000,-1600.0,0.00016,2]
[424658847,1781035841000,-386.953971,0.00016082,2]
[424658852,1781035841000,-326.5044788,0.00016082,2]
[424658853,1781035841000,-326.5044788,0.00016082,2]
[424658855,1781035841000,-356.72599459,0.0001611,3]
[424658818,1781035841000,-267.78,0.00015381,2]
[424658848,1781035841000,-325.1169173,0.00016082,2]
[424658850,1781035841000,-326.3315331,0.00016082,2]
[424658867,1781035841000,-187.218,0.00016282,2]
[424658878,1781035841000,-248.0,0.00016428,3]
[424658872,1781035841000,-2205.18673105,0.000164,2]
[424658863,1781035841000,-3637.0,0.00016282,2]
[424658869,1781035841000,-444.0,0.00016282,2]
[424658874,1781035841000,-377.69609189,0.000164,2]
[424658865,1781035841000,-744.0,0.00016282,2]
[424658841,1781035841000,-151.0,0.00016053,2]
[424658816,1781035841000,-227.2375463,0.00015255,2]
[424658796,1781035841000,-170.0,0.00015145,2]
[424658812,1781035841000,-151.5,0.00015255,2]
[424658761,1781035841000,-500.0,0.00014069,2]
[424658765,1781035841000,-500.0,0.0001407,2]
[424658764,1781035841000,-500.0,0.00014069,2]
[424658769,1781035841000,-171.19148888,0.0001409,2]
[424658767,1781035841000,-640.58071433,0.0001407,2]
[424658773,1781035841000,-151.0,0.000141,2]
[424658771,1781035841000,-151.0,0.000141,2]
[424658782,1781035841000,-151.0,0.00014409,2]
[424658778,1781035841000,-151.0,0.00014302,2]
[424658784,1781035841000,-158.818062,0.00014493,2]
[424658775,1781035841000,-151.0,0.00014302,2]
[424658780,1781035841000,-161.16093097,0.00014302,2]
[424658777,1781035841000,-151.0,0.00014302,2]
[424658786,1781035841000,-342.38297776,0.00014772,2]
[424658788,1781035841000,-206.55127574,0.00014772,2]
[424658799,1781035841000,-513.57446665,0.00015226,2]
[424658801,1781035841000,-413.10255147,0.00015226,2]
[424658803,1781035841000,-151.5,0.00015255,2]
[424658789,1781035841000,-796.0,0.000148,2]
[424658795,1781035841000,-179.897804,0.00015068,2]
[424658805,1781035841000,-151.5,0.00015255,2]
[424658807,1781035841000,-302.47922684,0.00015255,2]
[424658791,1781035841000,-151.0,0.00014957,2]
[424658798,1781035841000,-158.818062,0.00015217,2]
[424658876,1781035841000,-496.0,0.00016428,3]
[424658793,1781035841000,-417.53120228,0.00015,2]
[424658809,1781035841000,-151.5,0.00015255,2]
[424658814,1781035841000,-151.5,0.00015255,2]
[424658861,1781035841000,-2207.0,0.00016282,2]
[424658811,1781035841000,-168.57022042,0.00015255,2]
[424658871,1781035841000,-153.0,0.00016339,7]
[424658940,1781035841000,-500.0,0.00016438,2]
[424658928,1781035841000,-500.0,0.00016438,2]